[Event "Late-Titled-Tuesday-Blitz-May-28-2024"]
[Site "Chess.com"]
[Date "2024.05.28"]
[Round "9"]
[White "RAU4ever"]
[Black "Orest_Vovk"]
[Result "0-1"]
[WhiteElo "2361"]
[BlackElo "2511"]
[TimeControl "180+1"]
[EndTime "15:44:43 PDT"]
[Termination "Orest_Vovk won by checkmate"]

1. e4 {[%clk 0:03:00.9]} 1... g5 {[%clk 0:02:52.9]} 2. d4 {[%clk 0:02:59.4]}
2... g4 {[%clk 0:02:51.4]} 3. c4 {[%clk 0:02:48.6]} 3... Bg7 {[%clk 0:02:50.8]}
4. Nc3 {[%clk 0:02:48.6]} 4... c5 {[%clk 0:02:50.6]} 5. Be3 {[%clk 0:02:46.2]}
5... h5 {[%clk 0:02:40.3]} 6. Nge2 {[%clk 0:02:45.5]} 6... Nc6 {[%clk
0:02:39.3]} 7. f4 {[%clk 0:02:36.2]} 7... cxd4 {[%clk 0:02:36.9]} 8. Nxd4 {[%clk
0:02:35.4]} 8... d6 {[%clk 0:02:35.5]} 9. Qd2 {[%clk 0:02:28.7]} 9... Qa5 {[%clk
0:02:35.2]} 10. Nb3 {[%clk 0:02:26.9]} 10... Bxc3 {[%clk 0:02:30.1]} 11. bxc3
{[%clk 0:02:26.9]} 11... Qa4 {[%clk 0:02:25.8]} 12. e5 {[%clk 0:02:06.2]} 12...
dxe5 {[%clk 0:02:23.4]} 13. fxe5 {[%clk 0:02:07.1]} 13... Nxe5 {[%clk
0:02:16.1]} 14. Bd4 {[%clk 0:02:04.3]} 14... f6 {[%clk 0:02:07.4]} 15. Bxe5
{[%clk 0:02:02.3]} 15... fxe5 {[%clk 0:02:07.1]} 16. Qg5 {[%clk 0:01:50.2]}
16... Nf6 {[%clk 0:02:03.9]} 17. Qg6+ {[%clk 0:01:16]} 17... Kf8 {[%clk
0:02:02.6]} 18. Bd3 {[%clk 0:01:15.8]} 18... Be6 {[%clk 0:02:00.6]} 19. Nc5
{[%clk 0:01:14.8]} 19... Qc6 {[%clk 0:01:55.1]} 20. Rf1 {[%clk 0:01:07.7]} 20...
Bf7 {[%clk 0:01:49]} 21. Qg5 {[%clk 0:00:38.9]} 21... Qxc5 {[%clk 0:01:41.5]}
22. O-O-O {[%clk 0:00:30.5]} 22... Qa3+ {[%clk 0:01:13.5]} 23. Kb1 {[%clk
0:00:30.1]} 23... Qxc3 {[%clk 0:01:13.6]} 24. Rxf6 {[%clk 0:00:27.9]} 24... exf6
{[%clk 0:01:08.5]} 25. Qxf6 {[%clk 0:00:28.8]} 25... Rg8 {[%clk 0:00:50.6]} 26.
Qd6+ {[%clk 0:00:27.1]} 26... Kg7 {[%clk 0:00:44.8]} 27. Rf1 {[%clk 0:00:26.7]}
27... e4 {[%clk 0:00:38.1]} 28. Rxf7+ {[%clk 0:00:17.5]} 28... Kxf7 {[%clk
0:00:36.9]} 29. Qd7+ {[%clk 0:00:15.9]} 29... Kf6 {[%clk 0:00:28.6]} 30. Qd6+
{[%clk 0:00:13.4]} 30... Kg5 {[%clk 0:00:19.5]} 31. Qd5+ {[%clk 0:00:07.4]}
31... Kh6 {[%clk 0:00:18.8]} 32. Bxe4 {[%clk 0:00:02.7]} 32... Raf8 {[%clk
0:00:11.6]} 33. Qd6+ {[%clk 0:00:01]} 33... Qf6 {[%clk 0:00:10.9]} 34. Qd2+
{[%clk 0:00:01]} 34... Qf4 {[%clk 0:00:10.4]} 35. Qd5 {[%clk 0:00:01]} 35...
Qf1+ {[%clk 0:00:08.5]} 36. Kb2 {[%clk 0:00:01.2]} 36... Rf2+ {[%clk 0:00:09.1]}
37. Kb3 {[%clk 0:00:01.7]} 37... Rf6 {[%clk 0:00:06.5]} 38. Qxg8 {[%clk
0:00:00.4]} 38... Rb6+ {[%clk 0:00:06.5]} 39. Kc3 {[%clk 0:00:01]} 39... Qe1+
{[%clk 0:00:06.7]} 40. Kd4 {[%clk 0:00:01.3]} 40... Qf2+ {[%clk 0:00:05.8]} 41.
Ke5 {[%clk 0:00:01.6]} 41... Qf6+ {[%clk 0:00:05.8]} 42. Kd5 {[%clk 0:00:02.3]}
42... Qd6# {[%clk 0:00:06]} 0-1

[Event "Late-Titled-Tuesday-Blitz-May-28-2024"]
[Site "Chess.com"]
[Date "2024.05.28"]
[Round "9"]
[White "Zq1"]
[Black "rhwr"]
[Result "1-0"]
[WhiteElo "2533"]
[BlackElo "2347"]
[TimeControl "180+1"]
[EndTime "15:44:44 PDT"]
[Termination "Zq1 won by resignation"]

1. Nf3 {[%clk 0:02:59.5]} 1... Nf6 {[%clk 0:02:59]} 2. c4 {[%clk 0:02:59.5]}
2... g6 {[%clk 0:02:59.6]} 3. Nc3 {[%clk 0:02:59.2]} 3... Bg7 {[%clk 0:03:00.5]}
4. e4 {[%clk 0:02:59.1]} 4... d6 {[%clk 0:03:00.3]} 5. d4 {[%clk 0:02:59.2]}
5... O-O {[%clk 0:03:00.4]} 6. Be2 {[%clk 0:02:59.4]} 6... e5 {[%clk 0:03:00.6]}
7. O-O {[%clk 0:02:58.9]} 7... Nbd7 {[%clk 0:03:00.8]} 8. Be3 {[%clk 0:02:57.2]}
8... c6 {[%clk 0:02:57.7]} 9. d5 {[%clk 0:02:57.4]} 9... Qc7 {[%clk 0:02:56.4]}
10. Rc1 {[%clk 0:02:50.5]} 10... a5 {[%clk 0:02:52]} 11. b3 {[%clk 0:02:42.7]}
11... Ng4 {[%clk 0:02:36]} 12. Bd2 {[%clk 0:02:40.8]} 12... f5 {[%clk 0:02:31]}
13. exf5 {[%clk 0:02:33.1]} 13... gxf5 {[%clk 0:02:30.4]} 14. Ng5 {[%clk
0:02:33.2]} 14... Ndf6 {[%clk 0:02:20.9]} 15. h3 {[%clk 0:02:26.5]} 15... Nh6
{[%clk 0:02:19.6]} 16. f4 {[%clk 0:02:16.5]} 16... e4 {[%clk 0:02:14.1]} 17. Be3
{[%clk 0:02:14]} 17... c5 {[%clk 0:02:12.6]} 18. Ne6 {[%clk 0:01:58.7]} 18...
Bxe6 {[%clk 0:02:11.2]} 19. dxe6 {[%clk 0:01:58.9]} 19... Qe7 {[%clk 0:02:01.9]}
20. Nd5 {[%clk 0:01:58.4]} 20... Nxd5 {[%clk 0:02:01.5]} 21. cxd5 {[%clk
0:01:58.5]} 21... Kh8 {[%clk 0:01:59.7]} 22. a4 {[%clk 0:01:56.3]} 22... Ng8
{[%clk 0:01:58.6]} 23. Qe1 {[%clk 0:01:38.7]} 23... Nf6 {[%clk 0:01:55.2]} 24.
Bc4 {[%clk 0:01:38.2]} 24... b6 {[%clk 0:01:49.3]} 25. Qh4 {[%clk 0:01:36.4]}
25... Qb7 {[%clk 0:01:47.8]} 26. Rcd1 {[%clk 0:01:34.9]} 26... Ne8 {[%clk
0:01:42.7]} 27. Kh1 {[%clk 0:01:30.1]} 27... Bf6 {[%clk 0:01:38.2]} 28. Qh5
{[%clk 0:01:25]} 28... Ng7 {[%clk 0:01:37.7]} 29. Qh6 {[%clk 0:01:25]} 29... Qe7
{[%clk 0:01:32.4]} 30. g4 {[%clk 0:01:18.6]} 30... fxg4 {[%clk 0:01:14.1]} 31.
hxg4 {[%clk 0:01:17.8]} 31... Bc3 {[%clk 0:01:13.7]} 32. f5 {[%clk 0:01:11.2]}
32... Qf6 {[%clk 0:01:07.9]} 33. Qxf6 {[%clk 0:01:02.6]} 33... Rxf6 {[%clk
0:01:00.4]} 34. Rf4 {[%clk 0:01:02]} 34... h5 {[%clk 0:00:55.7]} 35. Rg1 {[%clk
0:00:54.6]} 35... hxg4 {[%clk 0:00:51.7]} 36. Rfxg4 {[%clk 0:00:51.8]} 36...
Nxf5 {[%clk 0:00:50.9]} 37. R1g2 {[%clk 0:00:40.6]} 37... Be1 {[%clk 0:00:12.8]}
38. Rh2+ {[%clk 0:00:36]} 38... Bh4 {[%clk 0:00:09.3]} 39. Bf2 {[%clk
0:00:28.2]} 39... Rh6 {[%clk 0:00:08.1]} 40. Bxh4 {[%clk 0:00:27.4]} 40... Nxh4
{[%clk 0:00:08.1]} 41. Rgxh4 {[%clk 0:00:26.9]} 41... Rxh4 {[%clk 0:00:08.2]}
42. Rxh4+ {[%clk 0:00:26.7]} 42... Kg7 {[%clk 0:00:09.1]} 43. Rxe4 {[%clk
0:00:26.4]} 43... Kf6 {[%clk 0:00:09.1]} 44. e7 {[%clk 0:00:24.5]} 44... Kf7
{[%clk 0:00:10]} 45. Re6 {[%clk 0:00:23.9]} 45... Rh8+ {[%clk 0:00:09.2]} 46.
Kg2 {[%clk 0:00:22.9]} 46... Rg8+ {[%clk 0:00:10.1]} 47. Kf3 {[%clk 0:00:22.7]}
47... Re8 {[%clk 0:00:11]} 48. Rxd6 {[%clk 0:00:20.7]} 48... Rxe7 {[%clk
0:00:11.9]} 49. Rxb6 {[%clk 0:00:20.6]} 49... Ke8 {[%clk 0:00:10.5]} 50. Re6
{[%clk 0:00:20]} 50... Rxe6 {[%clk 0:00:10.2]} 51. dxe6 {[%clk 0:00:19.7]} 51...
Ke7 {[%clk 0:00:11.1]} 52. Ke4 {[%clk 0:00:19.7]} 52... Kd6 {[%clk 0:00:12]} 53.
Kf5 {[%clk 0:00:19.6]} 53... Ke7 {[%clk 0:00:12.9]} 54. Ke5 {[%clk 0:00:19.7]}
1-0

[Event "Late-Titled-Tuesday-Blitz-May-28-2024"]
[Site "Chess.com"]
[Date "2024.05.28"]
[Round "9"]
[White "ValeriyGrinev"]
[Black "MaiqMaster"]
[Result "0-1"]
[WhiteElo "2576"]
[BlackElo "2484"]
[TimeControl "180+1"]
[EndTime "15:44:49 PDT"]
[Termination "MaiqMaster won by resignation"]

1. e4 {[%clk 0:03:00.9]} 1... c5 {[%clk 0:02:59.3]} 2. Nc3 {[%clk 0:02:59]} 2...
e6 {[%clk 0:02:59.3]} 3. g3 {[%clk 0:02:58.6]} 3... d5 {[%clk 0:02:58.5]} 4. Bg2
{[%clk 0:02:54.5]} 4... Nf6 {[%clk 0:02:57.2]} 5. d3 {[%clk 0:02:54]} 5... Be7
{[%clk 0:02:56.4]} 6. Nge2 {[%clk 0:02:50.1]} 6... d4 {[%clk 0:02:53.8]} 7. Nb1
{[%clk 0:02:49.3]} 7... e5 {[%clk 0:02:53.3]} 8. h3 {[%clk 0:02:48.1]} 8... h5
{[%clk 0:02:49.8]} 9. a4 {[%clk 0:02:47.5]} 9... Nc6 {[%clk 0:02:48.5]} 10. Na3
{[%clk 0:02:47]} 10... Be6 {[%clk 0:02:46.6]} 11. b3 {[%clk 0:02:46.9]} 11...
Nd7 {[%clk 0:02:42.1]} 12. Nc4 {[%clk 0:02:46.7]} 12... h4 {[%clk 0:02:37.5]}
13. f4 {[%clk 0:02:44.2]} 13... hxg3 {[%clk 0:02:33.2]} 14. f5 {[%clk
0:02:43.9]} 14... Bxc4 {[%clk 0:02:32.7]} 15. bxc4 {[%clk 0:02:43.7]} 15... Bg5
{[%clk 0:02:30.1]} 16. Nxg3 {[%clk 0:02:38.4]} 16... Bxc1 {[%clk 0:02:25.5]} 17.
Qxc1 {[%clk 0:02:34.4]} 17... Qh4 {[%clk 0:02:22.8]} 18. Kf2 {[%clk 0:02:34.5]}
18... O-O-O {[%clk 0:02:12.7]} 19. Bf3 {[%clk 0:02:33.4]} 19... g6 {[%clk
0:02:07.3]} 20. Bg4 {[%clk 0:02:31.2]} 20... Nf6 {[%clk 0:02:05]} 21. Kf3 {[%clk
0:02:29.7]} 21... Kb8 {[%clk 0:01:54.2]} 22. a5 {[%clk 0:02:28.6]} 22... Nh5
{[%clk 0:01:50]} 23. Ne2 {[%clk 0:02:21.8]} 23... gxf5 {[%clk 0:01:45.8]} 24.
exf5 {[%clk 0:02:19.9]} 24... e4+ {[%clk 0:01:40.2]} 25. dxe4 {[%clk 0:02:17.9]}
25... Ne5+ {[%clk 0:01:40.6]} 26. Kg2 {[%clk 0:02:17.9]} 26... Nxg4 {[%clk
0:01:31]} 27. hxg4 {[%clk 0:02:14.8]} 27... Qxg4+ {[%clk 0:01:31.9]} 28. Kf2
{[%clk 0:02:14.2]} 28... Qxe4 {[%clk 0:01:26.8]} 29. Ra3 {[%clk 0:01:58.6]}
29... Rde8 {[%clk 0:01:21.3]} 30. Qf1 {[%clk 0:01:15.4]} 30... Qxf5+ {[%clk
0:00:58.1]} 31. Rf3 {[%clk 0:01:14.2]} 31... Qxc2 {[%clk 0:00:58.7]} 32. Qd1
{[%clk 0:00:58.8]} 32... Qxc4 {[%clk 0:00:51.2]} 33. a6 {[%clk 0:00:54.4]} 33...
Re3 {[%clk 0:00:28.5]} 34. Rhh3 {[%clk 0:00:32.5]} 34... Rhe8 {[%clk 0:00:20]}
35. Ng1 {[%clk 0:00:22.3]} 35... Rxf3+ {[%clk 0:00:16.7]} 36. Rxf3 {[%clk
0:00:20.4]} 36... Qd5 {[%clk 0:00:15.6]} 37. Qb1 {[%clk 0:00:19.2]} 37... b6
{[%clk 0:00:13.5]} 38. Rf5 {[%clk 0:00:18.9]} 38... Qe6 {[%clk 0:00:05.7]} 39.
Rxh5 {[%clk 0:00:17.8]} 39... Qe3+ {[%clk 0:00:06]} 40. Kg2 {[%clk 0:00:18.4]}
40... Rg8+ {[%clk 0:00:06]} 41. Kh1 {[%clk 0:00:16.6]} 41... Rxg1+ {[%clk
0:00:03.7]} 42. Qxg1 {[%clk 0:00:16]} 42... Qf3+ {[%clk 0:00:04.3]} 43. Qg2
{[%clk 0:00:16.9]} 43... Qxh5+ {[%clk 0:00:04.8]} 44. Kg1 {[%clk 0:00:17.7]}
44... Qd1+ {[%clk 0:00:05]} 45. Kh2 {[%clk 0:00:18]} 45... Qh5+ {[%clk
0:00:05.6]} 46. Kg1 {[%clk 0:00:18.7]} 46... Qg6 {[%clk 0:00:03.6]} 47. Qxg6
{[%clk 0:00:16.3]} 47... fxg6 {[%clk 0:00:04.5]} 48. Kf2 {[%clk 0:00:15.9]}
48... b5 {[%clk 0:00:05.4]} 49. Kf3 {[%clk 0:00:15.8]} 49... Kc7 {[%clk
0:00:06.3]} 50. Ke4 {[%clk 0:00:16.7]} 50... Kb6 {[%clk 0:00:07.2]} 51. Kd5
{[%clk 0:00:17]} 51... Kxa6 {[%clk 0:00:08.1]} 52. Kxc5 {[%clk 0:00:17.2]} 52...
d3 {[%clk 0:00:08.6]} 0-1

[Event "Late-Titled-Tuesday-Blitz-May-28-2024"]
[Site "Chess.com"]
[Date "2024.05.28"]
[Round "9"]
[White "JaackCamel"]
[Black "Tol_Tol"]
[Result "0-1"]
[WhiteElo "2228"]
[BlackElo "2342"]
[TimeControl "180+1"]
[EndTime "15:44:52 PDT"]
[Termination "Tol_Tol won on time"]

1. d4 {[%clk 0:03:00.9]} 1... Nf6 {[%clk 0:02:58.1]} 2. c4 {[%clk 0:03:00.4]}
2... g6 {[%clk 0:02:58.4]} 3. Nc3 {[%clk 0:02:59.8]} 3... Bg7 {[%clk 0:02:59.3]}
4. e4 {[%clk 0:02:59.7]} 4... O-O {[%clk 0:03:00.2]} 5. Nf3 {[%clk 0:02:59.4]}
5... d6 {[%clk 0:02:56.6]} 6. Be2 {[%clk 0:02:59.2]} 6... e5 {[%clk 0:02:56.9]}
7. Be3 {[%clk 0:02:58.1]} 7... Ng4 {[%clk 0:02:56.5]} 8. Bg5 {[%clk 0:02:57.3]}
8... f6 {[%clk 0:02:57]} 9. Bh4 {[%clk 0:02:57]} 9... g5 {[%clk 0:02:57.5]} 10.
Bg3 {[%clk 0:02:56.4]} 10... Nh6 {[%clk 0:02:58.4]} 11. dxe5 {[%clk 0:02:43]}
11... dxe5 {[%clk 0:02:57.5]} 12. Qxd8 {[%clk 0:02:42]} 12... Rxd8 {[%clk
0:02:57.3]} 13. Nd5 {[%clk 0:02:40.5]} 13... Na6 {[%clk 0:02:54.2]} 14. Ne7+
{[%clk 0:02:10.1]} 14... Kf7 {[%clk 0:02:52.6]} 15. Nxc8 {[%clk 0:02:10.1]}
15... Raxc8 {[%clk 0:02:52.1]} 16. Rd1 {[%clk 0:02:09.2]} 16... Nc5 {[%clk
0:02:47.1]} 17. Nd2 {[%clk 0:02:02.5]} 17... Ne6 {[%clk 0:02:38.4]} 18. O-O
{[%clk 0:01:52.5]} 18... Nd4 {[%clk 0:02:36]} 19. Bh5+ {[%clk 0:01:49.8]} 19...
Ke7 {[%clk 0:02:33.5]} 20. f3 {[%clk 0:01:21]} 20... Ne2+ {[%clk 0:01:54.6]} 21.
Kf2 {[%clk 0:01:16.6]} 21... Nf4 {[%clk 0:01:50.6]} 22. Bxf4 {[%clk 0:01:03.8]}
22... gxf4 {[%clk 0:01:50.6]} 23. Nb3 {[%clk 0:00:57.9]} 23... b6 {[%clk
0:01:44.7]} 24. c5 {[%clk 0:00:55.8]} 24... Ke6 {[%clk 0:01:42.6]} 25. g3 {[%clk
0:00:43.7]} 25... Bf8 {[%clk 0:01:37.7]} 26. gxf4 {[%clk 0:00:39.1]} 26... exf4
{[%clk 0:01:36.9]} 27. Ke2 {[%clk 0:00:28.2]} 27... bxc5 {[%clk 0:01:31.4]} 28.
Na5 {[%clk 0:00:27.1]} 28... Rd6 {[%clk 0:01:25.5]} 29. Nc4 {[%clk 0:00:25]}
29... Rd4 {[%clk 0:01:22.1]} 30. Rxd4 {[%clk 0:00:20]} 30... cxd4 {[%clk
0:01:22.3]} 31. Kd3 {[%clk 0:00:19.3]} 31... c5 {[%clk 0:01:21]} 32. Rg1 {[%clk
0:00:17.8]} 32... Rb8 {[%clk 0:01:09.1]} 33. b3 {[%clk 0:00:17.7]} 33... f5
{[%clk 0:01:06.4]} 34. Rg5 {[%clk 0:00:13.9]} 34... fxe4+ {[%clk 0:01:04.8]} 35.
Kxe4 {[%clk 0:00:14.1]} 35... Bd6 {[%clk 0:00:58.2]} 36. Rg7 {[%clk 0:00:11.3]}
36... Rg8 {[%clk 0:00:35.7]} 37. Rxh7 {[%clk 0:00:10.5]} 37... Bf8 {[%clk
0:00:26.4]} 38. Rxa7 {[%clk 0:00:08.8]} 38... Rg5 {[%clk 0:00:24]} 39. Be8
{[%clk 0:00:07.2]} 39... Rg2 {[%clk 0:00:18.1]} 40. Bd7+ {[%clk 0:00:05.6]}
40... Kf6 {[%clk 0:00:15]} 41. Ra6+ {[%clk 0:00:04.4]} 41... Kg7 {[%clk
0:00:14.9]} 42. Kxf4 {[%clk 0:00:02.7]} 42... Rxh2 {[%clk 0:00:13.6]} 43. Ne5
{[%clk 0:00:01]} 43... Rh4+ {[%clk 0:00:09.7]} 44. Kg5 {[%clk 0:00:01]} 44...
Be7+ {[%clk 0:00:08.2]} 0-1

[Event "Late-Titled-Tuesday-Blitz-May-28-2024"]
[Site "Chess.com"]
[Date "2024.05.28"]
[Round "9"]
[White "GMG"]
[Black "Karttunen"]
[Result "1-0"]
[WhiteElo "2810"]
[BlackElo "2671"]
[TimeControl "180+1"]
[EndTime "15:44:54 PDT"]
[Termination "GMG won by resignation"]

1. d4 {[%clk 0:03:00.9]} 1... Nf6 {[%clk 0:02:59.2]} 2. c4 {[%clk 0:03:01.1]}
2... e6 {[%clk 0:02:59.4]} 3. Nf3 {[%clk 0:03:00]} 3... d5 {[%clk 0:02:59.5]} 4.
Nc3 {[%clk 0:02:59.8]} 4... Bb4 {[%clk 0:02:58.7]} 5. cxd5 {[%clk 0:03:00.1]}
5... exd5 {[%clk 0:02:58.7]} 6. Bg5 {[%clk 0:03:00.6]} 6... h6 {[%clk
0:02:53.8]} 7. Bh4 {[%clk 0:03:00.9]} 7... Nc6 {[%clk 0:02:31.8]} 8. e3 {[%clk
0:02:45.7]} 8... g5 {[%clk 0:02:23.6]} 9. Bg3 {[%clk 0:02:45.8]} 9... Ne4 {[%clk
0:02:23.8]} 10. Nd2 {[%clk 0:02:46.2]} 10... Bxc3 {[%clk 0:02:22.7]} 11. bxc3
{[%clk 0:02:45]} 11... Nxg3 {[%clk 0:02:18.8]} 12. hxg3 {[%clk 0:02:35.5]} 12...
Qd6 {[%clk 0:02:06.9]} 13. Bd3 {[%clk 0:02:32.4]} 13... Be6 {[%clk 0:02:03.9]}
14. Rb1 {[%clk 0:02:32.7]} 14... b6 {[%clk 0:01:54.1]} 15. e4 {[%clk 0:01:58.2]}
15... O-O-O {[%clk 0:01:25.5]} 16. e5 {[%clk 0:01:48.2]} 16... Qa3 {[%clk
0:01:21.1]} 17. O-O {[%clk 0:01:30.5]} 17... Na5 {[%clk 0:01:19.9]} 18. Qc2
{[%clk 0:01:22.1]} 18... Kb8 {[%clk 0:00:57.3]} 19. f4 {[%clk 0:00:51.1]} 19...
gxf4 {[%clk 0:00:56.7]} 20. gxf4 {[%clk 0:00:52]} 20... Bd7 {[%clk 0:00:53.8]}
21. Rb4 {[%clk 0:00:50.6]} 21... Nb7 {[%clk 0:00:45.7]} 22. Nb1 {[%clk
0:00:46.3]} 22... Qa5 {[%clk 0:00:45]} 23. f5 {[%clk 0:00:45.9]} 23... c5 {[%clk
0:00:41.9]} 24. Rb2 {[%clk 0:00:45.1]} 24... Rc8 {[%clk 0:00:32.6]} 25. Qf2
{[%clk 0:00:43.7]} 25... cxd4 {[%clk 0:00:31.2]} 26. cxd4 {[%clk 0:00:42.4]}
26... Ka8 {[%clk 0:00:31]} 27. Re2 {[%clk 0:00:30.3]} 27... Bb5 {[%clk
0:00:24.3]} 28. Qf3 {[%clk 0:00:28.5]} 28... Bxd3 {[%clk 0:00:23.6]} 29. Qxd3
{[%clk 0:00:29.4]} 29... Rc4 {[%clk 0:00:21.9]} 30. e6 {[%clk 0:00:23.6]} 30...
f6 {[%clk 0:00:19.5]} 31. Nd2 {[%clk 0:00:17.9]} 31... Rc3 {[%clk 0:00:18.7]}
32. Qb1 {[%clk 0:00:18.4]} 32... Nd6 {[%clk 0:00:18.3]} 33. Nb3 {[%clk
0:00:12.5]} 33... Qa4 {[%clk 0:00:18.1]} 34. Qe1 {[%clk 0:00:12.1]} 34... Rcc8
{[%clk 0:00:09.2]} 35. e7 {[%clk 0:00:11.1]} 35... Rhe8 {[%clk 0:00:09]} 36. Re6
{[%clk 0:00:11.2]} 36... Ne4 {[%clk 0:00:09.4]} 37. Rxe4 {[%clk 0:00:10.5]}
37... dxe4 {[%clk 0:00:09.5]} 38. Qxe4+ {[%clk 0:00:11.4]} 38... Qc6 {[%clk
0:00:09.5]} 39. d5 {[%clk 0:00:11.8]} 39... Qb7 {[%clk 0:00:10]} 40. Re1 {[%clk
0:00:11.6]} 40... Rc7 {[%clk 0:00:08.8]} 41. d6 {[%clk 0:00:11.3]} 41... Qxe4
{[%clk 0:00:07.3]} 42. Rxe4 {[%clk 0:00:12.2]} 42... Rd7 {[%clk 0:00:07.8]} 43.
Re6 {[%clk 0:00:11.4]} 43... Kb7 {[%clk 0:00:08.3]} 44. Nd4 {[%clk 0:00:11]}
44... a6 {[%clk 0:00:06.5]} 45. Rxf6 {[%clk 0:00:11.4]} 45... b5 {[%clk
0:00:04.9]} 46. Rf8 {[%clk 0:00:11.2]} 46... Rdxe7 {[%clk 0:00:04.4]} 47. dxe7
{[%clk 0:00:11]} 47... Rxe7 {[%clk 0:00:05.3]} 48. f6 {[%clk 0:00:09.1]} 48...
Rd7 {[%clk 0:00:05.7]} 49. Ne6 {[%clk 0:00:08.4]} 1-0

[Event "Late-Titled-Tuesday-Blitz-May-28-2024"]
[Site "Chess.com"]
[Date "2024.05.28"]
[Round "9"]
[White "IngOscarArdila"]
[Black "atalz0"]
[Result "1/2-1/2"]
[WhiteElo "2302"]
[BlackElo "2485"]
[TimeControl "180+1"]
[EndTime "15:44:57 PDT"]
[Termination "Game drawn by repetition"]

1. d4 {[%clk 0:02:59.6]} 1... Nf6 {[%clk 0:02:59.3]} 2. Nf3 {[%clk 0:02:59.7]}
2... e6 {[%clk 0:02:59.3]} 3. c4 {[%clk 0:03:00.3]} 3... d5 {[%clk 0:02:58.2]}
4. Nc3 {[%clk 0:03:00.6]} 4... c5 {[%clk 0:02:57.4]} 5. Bg5 {[%clk 0:02:57.8]}
5... cxd4 {[%clk 0:02:51.8]} 6. Nxd4 {[%clk 0:02:58.7]} 6... Be7 {[%clk
0:02:39.9]} 7. cxd5 {[%clk 0:02:58.2]} 7... Nxd5 {[%clk 0:02:39.3]} 8. Bxe7
{[%clk 0:02:57.9]} 8... Qxe7 {[%clk 0:02:25.9]} 9. Nxd5 {[%clk 0:02:56.4]} 9...
exd5 {[%clk 0:02:26.8]} 10. e3 {[%clk 0:02:55.8]} 10... Qb4+ {[%clk 0:02:11.6]}
11. Qd2 {[%clk 0:02:55.2]} 11... Qxd2+ {[%clk 0:02:12.2]} 12. Kxd2 {[%clk
0:02:56.1]} 12... Nc6 {[%clk 0:02:12]} 13. Bb5 {[%clk 0:02:44.3]} 13... Bd7
{[%clk 0:02:11.8]} 14. Bxc6 {[%clk 0:02:37.8]} 14... bxc6 {[%clk 0:02:12.7]} 15.
Rhc1 {[%clk 0:02:36.5]} 15... Rc8 {[%clk 0:02:07.8]} 16. b4 {[%clk 0:02:36.2]}
16... Ke7 {[%clk 0:02:07.5]} 17. Rc5 {[%clk 0:02:35.1]} 17... Kd6 {[%clk
0:02:04]} 18. Rac1 {[%clk 0:02:33.9]} 18... a6 {[%clk 0:01:31.5]} 19. Ra5 {[%clk
0:02:26]} 19... Ra8 {[%clk 0:01:31.2]} 20. Nb3 {[%clk 0:02:25.1]} 20... Rhb8
{[%clk 0:01:29]} 21. a3 {[%clk 0:02:24.5]} 21... Rb5 {[%clk 0:01:25.7]} 22. Rc5
{[%clk 0:02:21.5]} 22... Bc8 {[%clk 0:00:27.9]} 23. Nd4 {[%clk 0:01:55.5]} 23...
Rxc5 {[%clk 0:00:27.1]} 24. Rxc5 {[%clk 0:01:55.4]} 24... Bd7 {[%clk 0:00:25.7]}
25. Nb3 {[%clk 0:01:53.5]} 25... Kc7 {[%clk 0:00:22.3]} 26. Na5 {[%clk
0:01:52.4]} 26... Kb6 {[%clk 0:00:21.7]} 27. Kc3 {[%clk 0:01:51.4]} 27... Re8
{[%clk 0:00:20.4]} 28. Nb3 {[%clk 0:01:46.7]} 28... Re4 {[%clk 0:00:18.8]} 29.
Nd4 {[%clk 0:01:45.4]} 29... g6 {[%clk 0:00:18.9]} 30. Kd3 {[%clk 0:01:43.5]}
30... h5 {[%clk 0:00:17.8]} 31. f3 {[%clk 0:01:42.4]} 31... Re7 {[%clk
0:00:16.6]} 32. Ra5 {[%clk 0:01:35.1]} 32... Re8 {[%clk 0:00:15.8]} 33. Nb3
{[%clk 0:01:34.4]} 33... h4 {[%clk 0:00:14.9]} 34. Nc5 {[%clk 0:01:33.8]} 34...
Bc8 {[%clk 0:00:15.2]} 35. Nb3 {[%clk 0:01:24.6]} 35... Bf5+ {[%clk 0:00:14.1]}
36. Kd2 {[%clk 0:01:24.7]} 36... g5 {[%clk 0:00:12.6]} 37. Nd4 {[%clk
0:01:24.6]} 37... Bd7 {[%clk 0:00:13.2]} 38. Rc5 {[%clk 0:01:24.7]} 38... h3
{[%clk 0:00:10.3]} 39. g3 {[%clk 0:01:19.1]} 39... f6 {[%clk 0:00:09.8]} 40. a4
{[%clk 0:01:18.8]} 40... Re7 {[%clk 0:00:09.3]} 41. a5+ {[%clk 0:01:18.5]} 41...
Kb7 {[%clk 0:00:08.4]} 42. Rc1 {[%clk 0:01:17.6]} 42... Kc7 {[%clk 0:00:06.7]}
43. Nb3 {[%clk 0:01:17.4]} 43... Bc8 {[%clk 0:00:06.3]} 44. Nc5 {[%clk
0:01:17.4]} 44... Kd6 {[%clk 0:00:06.6]} 45. Re1 {[%clk 0:01:14]} 45... f5
{[%clk 0:00:05.9]} 46. Kd3 {[%clk 0:01:13.8]} 46... g4 {[%clk 0:00:05]} 47. f4
{[%clk 0:01:12.6]} 47... Re8 {[%clk 0:00:04.6]} 48. Kd4 {[%clk 0:01:12.7]} 48...
Re7 {[%clk 0:00:05]} 49. Kd3 {[%clk 0:01:03.4]} 49... Re8 {[%clk 0:00:05.3]} 50.
Kd2 {[%clk 0:01:03.4]} 50... Re7 {[%clk 0:00:05.4]} 51. Nd3 {[%clk 0:01:03.2]}
51... Re4 {[%clk 0:00:04.1]} 52. Rb1 {[%clk 0:01:02.5]} 52... Rc4 {[%clk
0:00:03.3]} 53. Rc1 {[%clk 0:01:00.8]} 53... Re4 {[%clk 0:00:01]} 54. Ne5 {[%clk
0:00:59.1]} 54... Rxb4 {[%clk 0:00:01]} 55. Nf7+ {[%clk 0:00:56.7]} 55... Ke7
{[%clk 0:00:01]} 56. Ne5 {[%clk 0:00:56.7]} 56... Bd7 {[%clk 0:00:01.2]} 57.
Ng6+ {[%clk 0:00:56.1]} 57... Kd6 {[%clk 0:00:01.3]} 58. Ne5 {[%clk 0:00:56.1]}
58... Rb2+ {[%clk 0:00:01.7]} 59. Rc2 {[%clk 0:00:55]} 59... Rxc2+ {[%clk
0:00:01.2]} 60. Kxc2 {[%clk 0:00:55.9]} 60... c5 {[%clk 0:00:01.6]} 61. Kc3
{[%clk 0:00:55.7]} 61... Bc8 {[%clk 0:00:01.1]} 62. Nf7+ {[%clk 0:00:54.3]}
62... Ke7 {[%clk 0:00:01]} 63. Ne5 {[%clk 0:00:54.7]} 63... Kd6 {[%clk
0:00:01.5]} 64. Nd3 {[%clk 0:00:53.8]} 64... Bb7 {[%clk 0:00:02]} 65. Ne5 {[%clk
0:00:53.8]} 65... Bc8 {[%clk 0:00:02.5]} 1/2-1/2